bitfinex/quotes_ETHUSD_20240824
["timestamp","ask_amount","ask_price","bid_price","bid_amount"]
[1724474663427,6.04749,2754.6,2754.0,3.63095]
[1724474665522,6.04749,2754.6,2754.0,7.26195]
[1724474666021,6.04749,2754.6,2754.1,3.63093]
[1724474668624,6.04749,2754.6,2754.0,3.63095]
[1724474669635,6.04749,2754.6,2754.0,7.26194]
[1724474669964,6.04749,2754.6,2754.0,3.63095]
[1724474670459,6.04749,2754.6,2754.0,7.26195]
[1724474670663,6.04749,2754.6,2753.8,3.63129]
[1724474670664,2.3605,2754.3,2753.8,3.63129]
[1724474671324,2.3605,2754.3,2753.8,7.26255]
[1724474671759,2.3605,2754.3,2754.0,3.63101]
[1724474673426,2.3605,2754.3,2754.1,3.63093]
[1724474681672,2.3605,2754.3,2753.9,3.6311]
[1724474686491,2.3605,2754.3,2753.9,7.26223]
[1724474686711,2.3605,2754.3,2754.0,3.63104]
[1724474701793,2.959599,2754.3,2753.9,1.89378571]
[1724474701947,2.3212,2753.8,2753.3,3.63188]
[1724474702444,2.3212,2753.8,2753.3,7.2638]
[1724474703168,2.3212,2753.8,2753.4,3.63186]
[1724474704588,2.3212,2753.8,2753.2,7.26413]
[1724474704727,2.3212,2753.7,2753.3,3.63198]
[1724474715423,2.3212,2753.7,2753.0,3.63229]
[1724474715721,2.3212,2753.5,2753.1,3.63224]
[1724474715916,2.3212,2753.5,2753.0,7.26461]
[1724474717329,2.3212,2753.4,2753.0,7.26461]
[1724474717868,2.3212,2753.4,2753.1,3.63226]
[1724474727695,2.3212,2753.4,2753.0,3.63229]
[1724474727696,2.3212,2753.4,2753.2,3.63212]
[1724474736275,2.3212,2753.4,2753.0,3.63228]
[1724474736492,5.98498,2753.3,2752.7,3.63278]
[1724474736712,2.3529,2753.2,2752.7,3.63278]
[1724474737004,2.3529,2753.1,2752.5,3.63295]
[1724474737926,2.3529,2753.0,2752.5,3.63295]
[1724474738223,0.598524,2752.9,2752.5,3.63295]
[1724474738354,2.3529,2753.0,2752.5,3.63295]
[1724474738810,2.3529,2753.0,2752.6,3.63292]
[1724474747334,2.3529,2753.0,2752.6,3.63285]
[1724474748341,2.3529,2753.0,2752.6,7.26569]
[1724474748634,2.3529,2753.0,2752.6,3.63284]
[1724474748796,0.23529,2752.9,2752.6,3.63284]
[1724474749792,0.23529,2752.9,2752.7,3.63279]
[1724474749997,0.23529,2752.9,2752.6,3.63284]
[1724474750227,0.23529,2752.9,2752.6,7.26568]
[1724474750458,0.23529,2752.9,2752.6,3.63284]
[1724474750658,0.23529,2752.9,2752.6,7.26568]
[1724474750862,0.23529,2752.9,2752.6,3.63284]
[1724474751061,0.23529,2752.9,2752.6,7.26568]
[1724474751538,0.23529,2752.9,2752.6,3.63284]
[1724474752469,0.23529,2752.9,2752.6,3.63283]
[1724474752833,0.23529,2752.9,2752.6,7.26567]
[1724474753442,0.23529,2752.9,2752.6,3.63283]
[1724474753642,0.23529,2752.9,2752.6,7.26568]
[1724474753844,0.23529,2752.9,2752.6,7.26567]
[1724474755135,2.3529,2753.0,2752.8,3.63266]
[1724474756801,2.3529,2753.0,2752.6,7.26563]
[1724474757343,2.3529,2753.0,2752.7,3.63275]
[1724474758467,2.3529,2753.0,2752.6,3.6328]
[1724474758664,2.3529,2753.0,2752.6,7.26563]
[1724474758867,2.951404,2753.0,2752.6,7.26563]
[1724474759068,2.951404,2753.0,2752.6,3.6328]
[1724474761717,2.4556,2752.9,2752.6,3.6328]
[1724474763193,2.4556,2752.9,2752.7,3.6327]
[1724474769587,2.4556,2752.9,2752.8,3.63266]
[1724474771830,2.3649,2753.2,2752.8,7.26532]
[1724474772018,2.987795,2753.2,2752.8,3.63266]
[1724474779847,2.987795,2753.2,2752.6,7.26566]
[1724474780046,2.987795,2753.2,2752.7,3.63276]
[1724474785106,6.619935,2753.2,2752.7,3.63276]
[1724474785501,6.06303,2753.4,2752.8,6.05395]
[1724474785704,6.63168,2753.6,2752.8,6.05395]
[1724474785705,5.4311,2753.6,2752.9,1.26303265]
[1724474785903,2.4311,2753.6,2753.2,3.63201]
[1724474786554,14.6411,2753.8,2753.3,3.63192]
[1724474786827,2.4311,2753.8,2753.3,3.63192]
[1724474787023,2.4311,2753.8,2753.4,3.63179]
[1724474787529,7.45,2753.9,2753.4,3.63179]
[1724474788821,7.45,2753.9,2753.4,7.26357]
[1724474789739,7.45,2753.9,2753.4,3.63178]
[1724474791597,6.06227,2754.0,2753.4,3.63178]
[1724474792502,2.4311,2754.0,2753.4,7.26355]
[1724474792699,2.4311,2754.0,2753.4,3.63177]
[1724474793105,6.06219,2754.0,2753.4,3.63177]
[1724474793906,2.4311,2754.0,2753.5,3.63172]
[1724474795132,2.4311,2754.0,2753.5,4.358069]
[1724474796004,6.06219,2754.0,2753.5,0.726349]
[1724474796346,6.06219,2754.0,2753.4,3.63177]
[1724474796509,6.06219,2754.0,2753.4,7.26355]
[1724474796694,6.06219,2754.0,2753.4,3.63177]
[1724474798418,3.63122,2753.9,2753.4,3.63177]
[1724474801320,2.4311,2754.0,2753.4,3.63177]
[1724474801520,0.606208,2753.9,2753.4,3.63177]
[1724474804522,0.606208,2753.9,2753.5,3.63173]
[1724474804728,2.4311,2754.0,2753.5,3.63173]
[1724474805137,6.06218,2754.0,2753.5,3.63173]
[1724474805529,6.06218,2754.0,2753.4,3.63177]
[1724474805742,9.8882,2754.2,2753.5,2.2583]
[1724474805943,9.8882,2754.2,2753.7,3.63138]
[1724474806266,9.8882,2754.2,2753.5,2.2583]
[1724474806267,10.322894,2754.2,2753.8,3.63127]
[1724474806457,15.21,2754.4,2754.1,3.63094]
[1724474806458,12.21,2754.4,2754.1,3.63094]
[1724474806750,2.4382,2754.6,2754.1,3.63094]
[1724474806966,2.4382,2754.6,2754.0,3.63104]
[1724474806967,3.63032,2754.6,2754.0,3.63104]
[1724474807260,3.6302,2754.7,2754.0,3.63098]
[1724474807565,2.4382,2754.8,2754.3,3.63068]
[1724474807923,6.06822,2754.8,2754.3,3.58068]
[1724474808123,7.038038,2754.8,2754.3,3.58068]
[1724474811645,6.06822,2754.8,2754.3,3.58068]
[1724474811843,6.06822,2754.8,2754.3,5.83898]
[1724474821847,6.06822,2754.8,2754.3,3.58068]
[1724474825742,6.06822,2754.8,2754.1,9.63257]
[1724474826054,6.06822,2754.8,2754.1,3.63083]
[1724474826256,6.06822,2754.8,2754.2,3.6308]
[1724474826257,3.63016,2754.7,2754.2,3.6308]
[1724474826493,4.599998,2754.7,2754.2,3.6308]
[1724474829187,2.4288,2754.5,2754.0,3.63099]
[1724474829548,6.05923,2754.5,2754.0,3.63099]
[1724474830607,0.969838,2754.7,2753.2,0.75963393]
[1724474830608,2.4288,2754.1,2753.5,6.12887]
[1724474832385,2.4288,2754.1,2753.7,3.63146]
[1724474834196,2.4288,2754.1,2753.7,3.63139]
[1724474835180,2.4288,2754.1,2753.8,3.63134]
[1724474835855,2.4288,2754.1,2753.7,3.63139]
[1724474837358,2.4288,2754.1,2753.7,7.26278]
[1724474837891,2.4288,2754.1,2753.7,3.63139]
[1724474841701,2.4286,2754.0,2753.5,3.63167]
[1724474842362,6.05976,2754.0,2753.5,3.63167]
[1724474843121,2.4286,2754.0,2753.3,3.63196]
[1724474843327,2.4286,2753.7,2753.1,7.26435]
[1724474844083,6.06009,2753.7,2753.1,3.63215]
[1724474844535,6.06025,2753.6,2753.1,3.63215]
[1724474844900,2.4286,2753.6,2753.1,3.63215]
[1724474855219,2.4286,2753.6,2753.2,3.63213]
[1724474867918,3.63127,2753.9,2753.2,3.63213]
[1724474868136,2.2509,2753.8,2753.4,3.63176]
[1724474868337,2.2509,2753.8,2753.5,3.63174]
[1724474868761,2.2509,2753.8,2753.4,3.63176]
[1724474869052,2.2509,2753.8,2753.4,7.26355]
[1724474869227,2.2509,2753.8,2753.4,3.63176]
[1724474870326,2.2509,2753.8,2753.4,7.26355]
[1724474870513,2.2509,2753.8,2753.4,3.63176]
[1724474885383,2.839112,2753.8,2753.4,3.63176]
[1724474888036,2.4734,2753.6,2753.0,4.39193393]
[1724474888247,3.63218,2753.2,2752.8,1.89447776]
[1724474888445,3.63218,2753.2,2752.4,8.11414248]
[1724474888446,2.4734,2753.0,2752.5,1.89466082]
[1724474888753,2.4734,2753.0,2752.4,4.39272393]
[1724474888754,9.73833,2753.0,2752.4,3.63309]
[1724474888934,6.10585,2753.0,2752.4,3.63309]
[1724474889513,2.4734,2752.9,2752.4,3.63309]
[1724474891610,2.4734,2752.9,2752.1,2.3923]
[1724474891814,2.4734,2752.9,2752.4,3.63311]
[1724474895482,2.4734,2752.9,2752.5,3.63304]
[1724474896401,2.4734,2752.9,2752.6,3.63291]
[1724474897665,2.4734,2752.9,2752.5,3.63304]
[1724474899291,3.1813476,2752.9,2752.5,3.63304]
[1724474910365,2.4734,2752.9,2752.5,3.63297]
[1724474911758,2.4734,2752.9,2752.5,7.26596]
[1724474911986,2.4734,2752.9,2752.5,3.63297]
[1724474913922,2.4734,2752.9,2752.3,3.63322]
[1724474914125,2.4734,2752.9,2752.4,3.63311]
[1724474914307,2.4846,2752.8,2752.3,3.63322]
[1724474915420,3.63306,2752.5,2751.9,3.63382]
[1724474915729,2.4846,2752.4,2752.0,3.63362]
[1724474920947,2.4846,2752.4,2751.8,3.63396]
[1724474920948,6.11789,2752.4,2751.8,3.63396]
[1724474921108,2.2636,2752.3,2751.8,3.63396]
[1724474922480,2.2636,2752.2,2751.6,3.63419]
[1724474922681,2.2636,2752.1,2751.6,3.63419]
[1724474924841,5.89719,2752.1,2751.6,3.63419]
[1724474926051,2.2636,2752.0,2751.6,3.63419]
[1724474928364,2.2636,2752.0,2751.4,7.26884]
[1724474928536,2.2636,2752.0,2751.5,3.63437]
[1724474929311,2.2636,2752.0,2751.5,4.361247]
[1724474929712,2.2636,2752.0,2751.6,3.63423]
[1724474938230,2.2636,2752.0,2751.4,3.63439]
[1724474938231,2.2636,2751.9,2751.4,3.63439]
[1724474939321,2.2636,2751.9,2751.5,3.63436]
[1724474939526,2.2636,2751.9,2751.4,3.63439]
[1724474939728,2.2636,2751.9,2751.4,7.26882]
[1724474940264,2.2636,2751.9,2751.5,3.63436]
[1724474945262,2.2636,2751.9,2751.5,4.361235]
[1724474945643,2.2636,2751.9,2751.5,0.726875]
[1724474945860,2.2636,2751.9,2751.4,3.63439]
[1724474946043,2.2636,2751.9,2751.4,7.26881]
[1724474947069,2.2636,2751.9,2751.4,3.63439]
[1724474948628,3.63388,2751.9,2751.2,3.63469]
[1724474948872,2.3048,2751.7,2751.2,3.63469]
[1724474949645,2.3048,2751.7,2751.2,7.26939]
[1724474951745,2.3048,2751.7,2751.2,3.63469]
[1724474952391,2.3048,2751.7,2751.2,7.26938]
[1724474952752,2.3048,2751.7,2751.2,3.63469]
[1724474953649,2.3048,2751.7,2751.2,7.26937]
[1724474953987,2.30375127,2751.7,2751.2,7.996453]
[1724474954680,2.30375127,2751.7,2751.2,4.361763]
[1724474955058,2.30375127,2751.7,2751.2,7.996453]
[1724474955458,2.30375127,2751.7,2751.2,4.361763]
[1724474955665,2.30375127,2751.7,2751.2,7.996453]
[1724474955986,2.30375127,2751.7,2751.2,7.996463]
[1724474956167,2.30375127,2751.7,2751.3,3.63463]
[1724474957610,2.30375127,2751.7,2751.3,4.4342693]
[1724474962984,5.89204,2751.6,2751.0,3.63642]
[1724474964088,2.2577,2751.6,2751.1,3.63486]
[1724474966589,2.2577,2751.6,2751.2,3.63476]
[1724474967553,2.2577,2751.6,2751.2,7.26945]
[1724474967757,2.2577,2751.6,2751.2,3.63469]
[1724474967959,2.2577,2751.6,2751.2,8.18606278]
[1724474968186,2.2577,2751.6,2751.2,4.55136278]
[1724474970169,2.2577,2751.6,2751.2,8.18606278]
[1724474971297,2.2577,2751.6,2751.2,4.55136278]
[1724474971794,2.2577,2751.6,2751.2,3.63469]
[1724474975120,2.82751954,2751.6,2751.2,3.63469]
[1724474975443,2.2577,2751.5,2751.2,3.63469]
[1724474977239,2.2577,2751.5,2751.0,3.63644]
[1724474979095,2.2577,2751.4,2751.0,3.63644]
[1724474987391,2.2577,2751.4,2751.0,4.593356]
[1724474988098,2.2577,2751.4,2751.0,4.593346]
[1724474993447,2.2577,2751.4,2751.0,3.63643]
[1724474995030,2.2577,2751.4,2751.0,3.63642]
[1724475000656,2.409,2751.6,2751.0,0.00146]
[1724475000949,7.45,2751.7,2751.5,3.63435]
[1724475001857,7.45,2751.7,2751.6,3.63424]
[1724475002663,7.45,2751.7,2751.6,4.361099]
[1724475002819,2.409,2752.0,2751.6,4.361029]
[1724475004462,2.409,2752.0,2751.6,3.63417]
[1724475004659,2.409,2752.0,2751.4,7.2689]
[1724475005319,2.409,2752.0,2751.5,3.63432]
[1724475006626,6.04272,2752.0,2751.5,3.63432]
[1724475007655,2.409,2752.0,2751.5,3.63432]
[1724475007857,2.409,2752.0,2751.5,4.55073735]
[1724475009549,2.409,2752.0,2751.5,4.55073735]
[1724475010157,6.04273,2752.0,2751.5,4.55073735]
[1724475010488,6.04273,2752.0,2751.5,3.63432]
[1724475011194,2.409,2752.0,2751.5,3.63432]
[1724475011881,6.04273,2752.0,2751.4,3.6344]
[1724475012193,2.3923,2751.9,2751.4,3.6344]
[1724475013578,2.3923,2751.9,2751.4,7.26882]
[1724475014973,2.3923,2751.9,2751.4,0.726882]
[1724475015173,2.3923,2751.9,2751.6,3.63416]
[1724475015574,2.3923,2752.1,2751.8,3.63397]
[1724475015772,2.3923,2752.1,2751.8,3.63389]
[1724475016085,6.63312,2752.5,2751.9,3.63381]
[1724475016086,2.3923,2752.4,2751.9,3.63381]
[1724475016685,6.02551,2752.4,2751.9,3.63381]
[1724475016897,6.02551,2752.4,2751.8,3.63389]
[1724475017299,6.02551,2752.4,2751.8,7.26779]
[1724475017487,6.02551,2752.4,2751.8,7.2678]
[1724475018367,6.02551,2752.4,2751.8,3.63389]
[1724475020500,6.02551,2752.4,2751.8,4.609326]
[1724475022783,3.63334,2752.3,2751.8,4.609326]
[1724475022971,3.63334,2752.3,2751.8,3.63389]
[1724475023698,2.2547,2752.2,2751.8,3.63389]
[1724475024086,2.2547,2752.2,2751.9,3.63383]
[1724475028435,2.2547,2752.2,2751.7,7.26811]
[1724475029394,2.2547,2752.2,2751.7,3.63402]
[1724475030528,2.2547,2752.2,2751.7,7.26805]
[1724475030892,2.2547,2752.2,2751.7,3.63402]
[1724475031427,2.2547,2752.2,2751.7,7.26805]
[1724475031730,2.2547,2752.2,2751.7,3.63402]
[1724475031924,2.2547,2752.2,2751.8,0.05949784]
[1724475032313,2.2547,2752.2,2751.7,3.63402]
[1724475032536,2.2547,2752.2,2751.9,0.06031467]
[1724475032762,2.2547,2752.2,2751.8,0.06032928]
[1724475032904,2.2547,2752.2,2752.0,0.06030005]
[1724475033106,2.2547,2752.2,2751.7,3.63402]
[1724475033404,2.2547,2752.2,2751.8,3.69429928]
[1724475038508,2.2547,2752.2,2751.8,0.06032928]
[1724475038860,2.2547,2752.2,2751.7,3.63402]
[1724475038861,5.88816,2752.2,2751.7,3.63402]
[1724475039061,5.88816,2752.2,2751.9,0.06031467]
[1724475039245,5.88816,2752.2,2751.7,3.63402]
[1724475039460,2.2547,2752.1,2752.0,0.06030541]
[1724475039763,2.2547,2752.1,2751.7,3.63402]
[1724475039927,2.2547,2752.1,2752.0,0.06030541]
[1724475040143,2.2547,2752.1,2751.7,3.63402]
[1724475040347,2.2547,2752.1,2752.0,0.06030541]
[1724475040868,2.2547,2752.1,2751.7,3.63402]
[1724475041019,2.2547,2752.1,2752.0,0.06030541]
[1724475041242,2.2547,2752.1,2751.7,3.63402]
[1724475041427,2.2547,2752.1,2752.0,0.06034835]
[1724475041661,2.843516,2752.1,2751.7,3.63402]
[1724475041966,2.2547,2752.1,2752.0,0.06034835]
[1724475042171,2.2547,2752.1,2751.7,3.63402]
[1724475042377,2.2547,2752.1,2752.0,0.06034835]
[1724475042535,2.2547,2752.1,2751.7,3.63402]
[1724475043023,2.2547,2752.1,2751.8,0.06037759]
[1724475043426,2.2547,2752.1,2751.9,0.06036297]
[1724475043825,2.2547,2752.1,2751.7,3.63402]
[1724475043986,2.2547,2752.1,2752.0,0.06037518]
[1724475044355,2.2547,2752.1,2751.7,3.63402]
[1724475044587,2.2547,2752.1,2752.0,0.06037518]
[1724475045041,2.2547,2752.1,2751.7,3.63402]
[1724475045236,2.2547,2752.1,2752.0,0.06037518]
[1724475045553,2.2547,2752.1,2751.7,3.63402]
[1724475046034,2.2547,2752.1,2751.8,0.06040442]
[1724475046388,2.2547,2752.1,2751.7,3.63402]
[1724475046602,2.2547,2752.1,2751.9,0.0603898]
[1724475046758,2.2547,2752.1,2751.8,0.06040442]
[1724475047071,2.2547,2752.1,2752.0,0.06037518]
[1724475047278,2.2547,2752.1,2751.9,0.0603898]
[1724475047474,2.2547,2752.1,2751.7,3.63402]
[1724475047703,2.2547,2752.1,2751.8,0.06040442]
[1724475047865,2.2547,2752.1,2751.7,3.63402]
[1724475048203,2.2547,2752.1,2751.8,0.06040442]
[1724475048504,2.2547,2752.1,2751.7,3.63402]
[1724475048651,2.2547,2752.1,2751.8,0.06040442]
[1724475048853,2.2547,2752.1,2751.7,3.63402]
[1724475049093,2.2547,2752.1,2751.8,0.06040442]
[1724475049304,2.2547,2752.1,2751.7,3.63402]
[1724475049608,2.2547,2752.1,2751.8,0.06040442]
[1724475049952,2.2547,2752.1,2751.7,3.63402]
[1724475050148,2.2547,2752.1,2751.9,0.0603898]
[1724475050352,2.2547,2752.1,2751.7,3.63402]
[1724475050353,2.2547,2752.1,2751.8,0.06040442]
[1724475050552,2.2547,2752.1,2752.0,0.06037518]
[1724475050747,2.2547,2752.1,2751.9,0.0603898]
[1724475050955,8.4221,2752.1,2752.0,0.06037518]
[1724475051184,4.78852,2752.1,2752.0,0.06037518]
[1724475051451,4.78852,2752.1,2751.6,3.63424]
[1724475051610,2.2547,2752.1,2751.6,3.63424]
[1724475051818,2.2547,2752.1,2751.7,0.06051565]
[1724475057157,2.2547,2752.1,2751.7,3.69459565]
[1724475061626,2.2547,2752.1,2751.7,3.63408]
[1724475061838,2.2547,2752.1,2751.8,0.06054397]
[1724475062266,2.2547,2752.1,2751.7,3.63408]
[1724475062462,2.2547,2752.1,2751.9,0.06056155]
[1724475062810,2.2547,2752.1,2752.0,0.06054693]
[1724475063177,2.2547,2752.1,2751.7,7.26808]
[1724475063476,2.2547,2752.1,2752.0,0.06054693]
[1724475063622,2.2547,2752.1,2751.7,3.63404]
[1724475063817,2.2547,2752.1,2752.0,0.06054693]
[1724475064325,2.2547,2752.1,2751.7,3.63404]
[1724475064552,2.2547,2752.1,2751.8,0.06057617]
[1724475064773,2.2547,2752.1,2751.7,3.63404]
[1724475065075,2.2547,2752.1,2751.9,0.06056155]
[1724475065270,2.2547,2752.1,2751.8,0.06057617]
[1724475065573,2.2547,2752.1,2751.9,0.06056155]
[1724475066167,2.2547,2752.1,2752.0,0.06054693]
[1724475066514,2.2547,2752.1,2751.7,3.63404]
[1724475066764,2.2547,2752.1,2751.8,0.06057617]
[1724475067123,2.2547,2752.1,2751.7,3.63404]
[1724475067328,2.2547,2752.1,2751.8,0.06057617]
[1724475067546,2.4196,2752.0,2751.5,0.75963393]
[1724475067824,6.05365,2751.8,2751.6,0.06060541]
[1724475068233,6.05365,2751.8,2751.3,3.63463]
[1724475068433,6.05365,2751.8,2751.7,0.06059616]
[1724475068634,7.022408,2751.8,2751.3,3.63463]
[1724475068962,7.022408,2751.8,2751.4,0.06064003]
[1724475071260,2.4196,2752.0,2751.4,0.06064003]
[1724475071460,2.4196,2752.0,2751.5,3.63427]
[1724475071827,2.4196,2752.0,2751.6,0.06075037]
[1724475072963,6.05332,2752.0,2751.6,0.06075037]
[1724475075950,9.68714,2752.0,2751.6,0.06075037]
[1724475076162,3.63386,2751.9,2751.3,7.26915]
[1724475076368,3.63386,2751.9,2751.7,0.06073574]
[1724475076540,3.63386,2751.9,2751.3,3.63456]
[1724475076740,3.63386,2751.9,2751.4,0.06087625]
[1724475081949,3.63402,2751.8,2751.4,0.06087625]
[1724475086256,3.63435,2751.6,2751.4,0.06087625]
[1724475086540,7.2687,2751.6,2751.0,5.53215401]
[1724475086714,7.2687,2751.6,2751.1,0.05893735]
[1724475087252,3.63435,2751.6,2751.1,0.05893735]
[1724475089207,3.63435,2751.6,2751.1,3.69383735]
[1724475089413,3.63435,2751.6,2751.1,4.67058209]
[1724475089916,3.63433,2751.6,2751.1,0.05893735]
[1724475090223,7.26868,2751.6,2751.1,0.05893735]
[1724475090441,3.63441,2751.5,2751.1,0.05893735]
[1724475090948,7.26869,2751.6,2751.1,0.05893735]
[1724475091310,3.6344,2751.5,2751.1,0.05893735]
[1724475092856,3.63433,2751.6,2751.1,0.05893735]
[1724475093256,7.2687,2751.6,2751.1,0.05893735]
[1724475096173,3.6344,2751.5,2751.1,0.05893735]
[1724475099965,1.0557734,2751.6,2751.1,0.05893735]
[1724475100272,3.63427,2751.6,2751.1,0.05893735]
[1724475100499,3.63427,2751.6,2751.1,3.69381735]
[1724475100904,3.63427,2751.6,2751.1,0.05893735]
[1724475101200,7.2686,2751.6,2751.1,0.05893735]
[1724475101766,3.63427,2751.6,2751.1,0.05893735]
[1724475101967,7.26861,2751.6,2751.1,0.05893735]
[1724475102187,3.63427,2751.6,2751.1,0.05893735]
[1724475102910,7.26861,2751.6,2751.1,0.05893735]
[1724475103501,3.6344,2751.5,2751.1,0.05893735]
[1724475106368,4.593297,2751.5,2751.1,0.05893735]
[1724475106594,3.63452,2751.4,2751.1,0.05893735]
[1724475108378,3.63476,2751.3,2751.1,0.05893735]
[1724475154294,3.63439,2751.5,2751.1,0.05893735]
[1724475154707,7.45,2751.8,2751.1,0.05893735]
[1724475154915,7.45,2751.8,2751.7,2.4073]
[1724475155118,15.84353,2752.2,2751.7,2.4073]
[1724475155321,7.37506478,2752.1,2751.7,2.46617644]
[1724475155694,7.37506478,2752.1,2751.7,2.4073]
[1724475156104,3.63379,2752.0,2751.7,2.4073]
[1724475156500,3.63379,2752.0,2751.8,0.05886182]
[1724475156689,3.63379,2752.0,2751.7,2.4073]
[1724475157098,3.63379,2752.0,2751.8,0.05886182]
[1724475157431,3.63379,2752.0,2751.7,2.4073]
[1724475158083,3.6336,2752.1,2751.7,2.4073]
[1724475158283,7.26727,2752.1,2751.7,2.4073]
[1724475158482,7.26729,2752.1,2751.8,0.05886182]
[1724475158815,7.26729,2752.1,2751.7,2.4073]
[1724475158979,3.63372,2752.0,2751.8,0.05886182]
[1724475159185,3.6336,2752.1,2751.7,2.4073]
[1724475159385,3.6336,2752.1,2751.8,0.05886182]
[1724475159727,7.26728,2752.1,2751.7,2.4073]
[1724475160101,7.26728,2752.1,2751.8,0.05886182]
[1724475160489,7.26728,2752.1,2751.7,2.4073]
[1724475160685,7.26728,2752.1,2751.9,0.0588472]
[1724475160884,7.26728,2752.1,2751.8,0.05886182]
[1724475161084,3.6336,2752.1,2752.0,0.05883258]
[1724475161325,3.6336,2752.1,2751.9,0.0588472]
[1724475161479,3.6336,2752.1,2752.0,0.05883258]
[1724475161883,3.6336,2752.1,2751.7,2.4073]
[1724475162125,3.6336,2752.1,2752.0,0.05883258]
[1724475162298,3.6336,2752.1,2751.7,2.4073]
[1724475162493,3.6336,2752.1,2752.0,0.05883258]
[1724475162700,3.6336,2752.1,2751.7,2.4073]
[1724475162888,3.6336,2752.1,2752.0,0.05883258]
[1724475163084,3.63373,2752.0,2751.7,2.4073]
[1724475164007,3.6336,2752.1,2751.7,2.4073]
[1724475167298,2.73597273,2752.1,2751.7,2.4073]
[1724475176825,14.71677,2752.3,2751.7,2.4073]
[1724475177120,3.63347,2752.2,2751.7,2.4073]
[1724475177507,3.63347,2752.2,2751.8,0.05871685]
[1724475177877,3.63347,2752.2,2751.7,2.4073]
[1724475178296,3.63347,2752.2,2751.8,0.05871148]
[1724475178833,3.63347,2752.2,2751.7,2.4073]
[1724475179025,3.63347,2752.2,2751.8,0.05871148]
[1724475179379,3.63347,2752.2,2751.7,2.4073]
[1724475179615,3.63347,2752.2,2751.8,0.05871148]
[1724475179814,3.63347,2752.2,2751.7,2.4073]
[1724475180016,3.63345,2752.2,2751.7,2.4073]
[1724475180223,3.63345,2752.2,2751.8,0.05871148]
[1724475180527,3.63345,2752.2,2751.7,2.4073]
[1724475180881,3.63345,2752.2,2751.8,0.05871148]
[1724475181226,3.63345,2752.2,2751.7,2.4073]
[1724475181395,3.63345,2752.2,2751.8,0.05871148]
[1724475181589,3.63345,2752.2,2751.7,2.4073]
[1724475181926,3.63345,2752.2,2751.8,0.05871148]
[1724475182280,3.63345,2752.2,2751.7,2.4073]
[1724475182731,3.63345,2752.2,2751.8,0.05871148]
[1724475183031,3.63345,2752.2,2751.7,2.4073]
[1724475183199,3.63345,2752.2,2751.8,0.05871148]
[1724475183730,3.63345,2752.2,2751.7,2.4073]
[1724475184015,3.63345,2752.2,2751.8,0.05871148]
[1724475184175,3.63345,2752.2,2751.7,2.4073]
[1724475184376,3.63345,2752.2,2751.8,0.05871148]
[1724475184807,3.63345,2752.2,2751.7,2.4073]
[1724475185186,3.63345,2752.2,2751.8,0.05871148]
[1724475185391,3.63345,2752.2,2751.7,2.4073]
[1724475185618,3.63345,2752.2,2751.8,0.05871148]
[1724475185782,3.63345,2752.2,2751.7,2.4073]
[1724475185982,3.63345,2752.2,2751.8,0.05871148]
[1724475186178,3.63345,2752.2,2751.7,2.4073]
[1724475186487,3.63345,2752.2,2751.8,0.05871148]
[1724475187041,3.63345,2752.2,2751.7,6.0414]
[1724475187520,3.63345,2752.2,2751.8,0.05871148]
[1724475187890,3.63345,2752.2,2751.7,6.0414]
[1724475188309,3.63345,2752.2,2751.8,0.05871148]
[1724475188719,3.63345,2752.2,2751.7,6.0414]
[1724475189228,3.63345,2752.2,2751.8,0.05871148]
[1724475189397,3.63345,2752.2,2751.7,6.0414]
[1724475189811,3.63345,2752.2,2751.8,0.05871148]
[1724475190018,14.71679,2752.3,2751.8,0.05871148]
[1724475190223,14.71679,2752.3,2751.7,6.0414]
[1724475190819,14.71679,2752.3,2751.8,0.05872222]
[1724475191025,15.42797112,2752.3,2751.8,0.05872222]
[1724475191320,3.63348,2752.2,2751.7,6.0414]
[1724475191495,11.79454112,2752.3,2751.8,2.3589]
[1724475191704,11.79454112,2752.3,2751.8,2.41762222]
[1724475193528,3.63346,2752.2,2751.8,2.41762222]
[1724475197622,7.45,2752.3,2752.2,3.63345]
[1724475197819,7.45,2752.3,2752.2,5.99235]
[1724475198130,7.45,2752.3,2752.2,2.41739732]
[1724475201345,33.9867,2752.8,2752.5,2.3163]
[1724475201346,31.66,2752.8,2752.5,2.3163]
[1724475201660,6.12583,2753.2,2752.7,3.63279]
[1724475201998,6.12583,2753.2,2752.8,0.05820035]
[1724475202405,6.12583,2753.2,2752.7,3.63279]
[1724475202610,6.12583,2753.2,2752.9,0.05818574]
[1724475202819,7.84662,2753.2,2752.7,3.63279]
[1724475203012,7.84662,2753.2,2752.8,0.05820035]
[1724475203311,7.84662,2753.2,2752.7,3.63279]
[1724475203745,7.84662,2753.2,2752.8,0.05820035]
[1724475203943,7.84662,2753.2,2752.7,3.63279]
[1724475204142,7.84662,2753.2,2752.9,0.05818574]
[1724475204347,7.84662,2753.2,2752.7,3.63279]
[1724475204849,7.84662,2753.2,2752.8,0.05820035]
[1724475205228,7.84662,2753.2,2752.7,3.63279]
[1724475205462,3.63213,2753.2,2752.7,3.63279]
[1724475205603,3.63213,2753.2,2752.8,0.05820035]
[1724475206140,3.63213,2753.2,2752.8,2.355]
[1724475206449,11.08207,2753.3,2752.8,2.355]
[1724475206619,11.08207,2753.3,2752.9,0.05818574]
[1724475207120,11.08207,2753.3,2752.8,2.355]
[1724475207432,14.7142,2753.3,2752.8,2.355]
[1724475207638,14.7142,2753.3,2752.9,0.05781008]
[1724475208142,3.63214,2753.2,2752.8,2.355]
[1724475208314,3.63214,2753.2,2753.0,0.05779547]
[1724475208634,3.63214,2753.2,2752.8,2.355]